bitfinex/quotes_BTCUSD_20260215
["timestamp","ask_amount","ask_price","bid_price","bid_amount"]
[1771116102593,1e-08,69716.0,69713.0,0.1092587]
[1771116102962,1e-08,69716.0,69713.0,0.0962587]
[1771116103210,1e-08,69718.0,69717.0,0.07171851]
[1771116103392,1e-08,69718.0,69717.0,0.09425075]
[1771116104272,1e-08,69718.0,69714.0,0.00171341]
[1771116104728,1e-08,69718.0,69714.0,0.02424565]
[1771116104928,1e-08,69718.0,69714.0,0.02253224]
[1771116105328,1e-08,69718.0,69717.0,0.09071851]
[1771116105532,7.11e-06,69720.0,69717.0,0.07171851]
[1771116106043,0.85241,69850.0,69719.0,0.07171565]
[1771116106044,1e-08,69724.0,69719.0,0.07171565]
[1771116106250,1e-08,69724.0,69720.0,0.07171534]
[1771116107102,1e-08,69724.0,69719.0,0.07171565]
[1771116107408,1e-08,69724.0,69717.0,0.016]
[1771116107613,0.07171227,69724.0,69717.0,0.08771842]
[1771116108280,0.07171227,69724.0,69717.0,0.07171842]
[1771116108482,0.07171227,69724.0,69720.0,0.005]
[1771116108638,0.07171227,69724.0,69717.0,0.07171842]
[1771116109068,0.07171227,69724.0,69717.0,0.07571842]
[1771116109241,0.07171227,69724.0,69717.0,0.07171842]
[1771116109642,0.07171227,69724.0,69720.0,0.003]
[1771116109846,1e-08,69724.0,69719.0,0.07171584]
[1771116111060,0.00040001,69724.0,69719.0,0.07171584]
[1771116111523,0.00040001,69724.0,69718.0,0.07171713]
[1771116113252,4e-05,69720.0,69718.0,0.07171713]
[1771116114838,0.00028714,69724.0,69718.0,0.07171713]
[1771116115041,0.00028714,69724.0,69718.0,0.07471713]
[1771116116046,0.00028714,69724.0,69718.0,0.07171713]
[1771116118374,0.02475699,69723.0,69715.0,0.0002]
[1771116118593,0.09647036,69722.0,69715.0,0.0002]
[1771116118737,0.07171555,69720.0,69715.0,0.0002]
[1771116118956,0.07171555,69720.0,69714.0,4e-05]
[1771116119157,0.10718047,69719.0,69705.0,0.07173021]
[1771116119425,0.07172403,69712.0,69705.0,0.07173021]
[1771116119562,0.07172403,69712.0,69703.0,0.07173091]
[1771116119766,0.09648164,69713.0,69703.0,0.07173091]
[1771116119962,0.09648164,69713.0,69706.0,0.07176977]
[1771116120197,0.07172465,69713.0,69706.0,4e-05]
[1771116120522,0.07171677,69719.0,69706.0,4e-05]
[1771116120676,0.07171677,69719.0,69711.0,0.07172418]
[1771116120882,0.07171677,69719.0,69712.0,0.07172276]
[1771116123631,0.07171861,69717.0,69709.0,0.50403943]
[1771116123839,0.00016,69720.0,69709.0,0.50403943]
[1771116124032,0.07171646,69719.0,69710.0,0.07172543]
[1771116124249,0.07171851,69718.0,69710.0,0.07172543]
[1771116125086,0.00016,69720.0,69708.0,0.0002]
[1771116125385,0.00016,69720.0,69692.0,0.02253224]
[1771116125386,0.07172936,69707.0,69692.0,0.02253224]
[1771116125582,0.07172983,69706.0,69697.0,0.07216596]
[1771116125758,0.07172936,69707.0,69699.0,0.07173626]
[1771116125937,0.09648435,69709.0,69698.0,0.43568]
[1771116126136,0.07172527,69711.0,69703.0,0.07173196]
[1771116126341,0.07172527,69711.0,69700.0,0.43263333]
[1771116126536,0.02475699,69713.0,69700.0,0.50436875]
[1771116126763,0.07172654,69710.0,69702.0,0.07173319]
[1771116127508,0.07172699,69709.0,69701.0,0.07193301]
[1771116127734,0.07173185,69705.0,69701.0,0.0002]
[1771116128266,4e-05,69704.0,69701.0,0.0002]
[1771116132618,0.07177231,69704.0,69701.0,0.0002]
[1771116132778,4e-05,69704.0,69701.0,0.0002]
[1771116133827,0.07177196,69704.0,69701.0,0.0002]
[1771116133978,4e-05,69704.0,69701.0,0.0002]
[1771116134395,0.07177204,69704.0,69701.0,0.0002]
[1771116134586,4e-05,69704.0,69701.0,0.0002]
[1771116136445,4e-05,69704.0,69701.0,0.0022]
[1771116136642,4e-05,69704.0,69701.0,0.0002]
[1771116137140,4e-05,69704.0,69701.0,0.0022]
[1771116138619,0.07173395,69702.0,69701.0,0.0022]
[1771116138814,0.07173395,69702.0,69700.0,0.00032]
[1771116138815,0.02437228,69703.0,69697.0,0.0004276]
[1771116139050,0.07173982,69697.0,69694.0,0.0002]
[1771116139364,0.07174026,69696.0,69694.0,0.0002]
[1771116139774,0.07174107,69696.0,69690.0,0.34376]
[1771116140130,0.07174107,69696.0,69694.0,0.004]
[1771116140341,0.07174107,69696.0,69690.0,0.34376]
[1771116140542,0.07173929,69697.0,69690.0,0.41550602]
[1771116140764,0.07173929,69697.0,69694.0,0.003]
[1771116140942,0.07173929,69697.0,69690.0,0.41550602]
[1771116141483,0.07173929,69697.0,69694.0,0.003]
[1771116141823,0.07173823,69698.0,69694.0,0.003]
[1771116142446,0.02437228,69701.0,69690.0,0.34376]
[1771116142650,0.2869463,69700.0,69694.0,0.009]
[1771116142907,0.07173991,69697.0,69694.0,0.009]
[1771116143129,0.02437228,69703.0,69690.0,0.34376]
[1771116143320,0.07178086,69696.0,69694.0,0.008]
[1771116143497,0.07174225,69694.0,69690.0,0.77607333]
[1771116143697,0.07174231,69694.0,69690.0,0.34376]
[1771116144515,0.07174151,69695.0,69690.0,0.34376]
[1771116145760,0.07174419,69694.0,69690.0,0.34376]
[1771116145933,0.07174493,69692.0,69690.0,0.36676]
[1771116146144,0.07174351,69693.0,69690.0,0.36676]
[1771116146350,0.07174351,69693.0,69690.0,0.00012]
[1771116146550,0.07174351,69693.0,69690.0,0.02212]
[1771116146750,0.07174351,69693.0,69690.0,0.00012]
[1771116147185,0.07174351,69693.0,69690.0,0.01812]
[1771116147493,0.07174351,69693.0,69690.0,0.00012]
[1771116147689,0.07174351,69693.0,69690.0,0.01812]
[1771116148207,0.07174233,69694.0,69690.0,0.01812]
[1771116148363,4e-05,69696.0,69690.0,0.01812]
[1771116148525,0.07174116,69695.0,69690.0,0.01812]
[1771116148726,0.07174253,69694.0,69690.0,0.01812]
[1771116148951,0.07174253,69694.0,69690.0,0.00012]
[1771116149213,4e-05,69696.0,69690.0,0.00012]
[1771116149415,0.07174416,69693.0,69690.0,0.02412]
[1771116149638,0.07174416,69693.0,69690.0,0.00012]
[1771116149846,0.07174416,69693.0,69690.0,0.02312]
[1771116150173,0.07174416,69693.0,69690.0,0.00012]
[1771116150372,0.07174416,69693.0,69690.0,0.01612]
[1771116150571,4e-05,69696.0,69690.0,0.00012]
[1771116150785,0.02437243,69709.0,69694.0,4e-05]
[1771116150986,0.07172913,69707.0,69699.0,0.07173604]
[1771116151192,0.07177015,69706.0,69699.0,0.07173604]
[1771116151397,0.07177015,69706.0,69696.0,0.42997552]
[1771116151834,0.07177015,69706.0,69698.0,0.0717375]
[1771116152214,4e-05,69706.0,69698.0,0.0717375]
[1771116152362,4e-05,69706.0,69699.0,0.07173649]
[1771116153229,4e-05,69706.0,69697.0,0.02317715]
[1771116153452,4e-05,69706.0,69687.0,0.28719528]
[1771116153453,0.0717361,69700.0,69692.0,0.07174234]
[1771116153727,0.0717361,69700.0,69693.0,0.07174309]
[1771116153896,0.0717361,69700.0,69699.0,0.005]
[1771116154584,0.0717361,69700.0,69692.0,0.07174234]
[1771116154585,0.07173755,69699.0,69692.0,0.07174234]
[1771116155209,0.0717361,69700.0,69691.0,0.09492051]
[1771116155575,0.0717361,69700.0,69693.0,0.07174313]
[1771116155776,0.07141054,69700.0,69693.0,0.07174313]
[1771116156086,0.07173718,69699.0,69692.0,0.07174384]
[1771116156288,0.28695339,69698.0,69690.0,0.00032]
[1771116156518,0.07174195,69695.0,69690.0,0.00032]
[1771116156839,0.07173935,69697.0,69690.0,0.00032]
[1771116157278,0.02437243,69698.0,69690.0,0.00032]
[1771116157417,0.07174235,69694.0,69690.0,0.00032]
[1771116157618,0.07174321,69693.0,69690.0,0.00032]
[1771116157814,0.02437243,69698.0,69690.0,0.00032]
[1771116157815,0.07174527,69691.0,69690.0,0.00032]
[1771116158027,0.31132882,69698.0,69686.0,0.0003938]
[1771116158028,0.07174696,69690.0,69686.0,0.0003938]
[1771116158263,0.07174696,69690.0,69686.0,0.00043741]
[1771116159761,0.07174696,69690.0,69686.0,0.00343741]
[1771116160398,0.08045282,69690.0,69683.0,0.0002]
[1771116160569,0.08045282,69690.0,69680.0,0.00032]
[1771116160570,0.07175122,69686.0,69680.0,0.00032]
[1771116160971,0.07175158,69685.0,69680.0,0.00032]
[1771116161811,0.07175122,69686.0,69680.0,0.00032]
[1771116162019,0.07174955,69687.0,69680.0,0.07207644]
[1771116162218,0.07174955,69687.0,69683.0,0.0002]
[1771116162440,0.07175049,69686.0,69683.0,0.0002]
[1771116163320,0.07175049,69686.0,69683.0,0.0022]
[1771116163466,0.07175049,69686.0,69683.0,0.0002]
[1771116165246,0.07186536,69690.0,69683.0,0.0002]
[1771116165457,0.00011883,69690.0,69684.0,0.07175149]
[1771116165657,0.00011883,69690.0,69683.0,0.01952078]
[1771116165795,0.00011883,69690.0,69685.0,0.07175127]
[1771116166430,0.00011883,69690.0,69684.0,0.09604856]
[1771116166633,4e-05,69694.0,69689.0,0.07174669]
[1771116166842,4e-05,69694.0,69690.0,0.02429635]
[1771116168930,4e-05,69694.0,69690.0,0.005]
[1771116170457,4e-05,69696.0,69691.0,0.02429635]
[1771116170662,4e-05,69696.0,69695.0,0.07174115]
[1771116171443,4e-05,69696.0,69695.0,0.07153763]
[1771116171661,4e-05,69696.0,69693.0,0.07174276]
[1771116172334,4e-05,69696.0,69692.0,0.07174219]
[1771116172850,4e-05,69696.0,69693.0,0.07674305]
[1771116173040,4e-05,69696.0,69693.0,0.07174305]
[1771116173251,4e-05,69696.0,69694.0,0.07174203]
[1771116173406,4e-05,69696.0,69693.0,0.07174313]
[1771116174580,4e-05,69696.0,69693.0,0.07574313]
[1771116174880,4e-05,69696.0,69693.0,0.09603948]
[1771116176238,4e-05,69696.0,69693.0,0.09623948]
[1771116176441,0.00044,69696.0,69693.0,0.09623948]
[1771116176983,0.00044,69696.0,69693.0,0.02449635]
[1771116177199,0.00044,69696.0,69693.0,0.0002]
[1771116177631,0.00044,69696.0,69694.0,0.07174218]
[1771116178322,0.00044,69696.0,69693.0,0.09623922]
[1771116178594,0.00044,69696.0,69693.0,0.07194287]
[1771116178814,0.00044,69696.0,69693.0,0.07594287]
[1771116179008,0.00044,69696.0,69693.0,0.07194287]
[1771116179440,0.00044,69696.0,69694.0,0.003]
[1771116180566,0.00044,69696.0,69693.0,0.07194287]
[1771116180923,0.00044,69696.0,69693.0,0.07594287]
[1771116181139,0.00044,69696.0,69693.0,0.07194287]
[1771116181349,0.00044,69696.0,69694.0,0.008]
[1771116181760,0.00044,69696.0,69693.0,0.07194287]
[1771116181939,0.00044,69696.0,69693.0,0.08094287]
[1771116182445,0.00044,69696.0,69693.0,0.07194287]
[1771116182645,0.00044,69696.0,69693.0,0.09623922]
[1771116183610,0.00044,69696.0,69694.0,0.008]
[1771116184272,0.00044,69696.0,69694.0,0.07174131]
[1771116184475,0.00044,69696.0,69695.0,0.07174115]
[1771116184678,0.00044,69696.0,69693.0,0.07894283]
[1771116185289,0.00044,69696.0,69694.0,0.07174197]
[1771116185747,0.00044,69696.0,69695.0,0.07174115]
[1771116186347,0.00044,69696.0,69694.0,0.07174197]
[1771116186769,0.00044,69696.0,69694.0,0.07874197]
[1771116187007,0.00044,69696.0,69695.0,0.07174115]
[1771116187495,0.00044,69696.0,69695.0,0.007]
[1771116187706,0.00044,69696.0,69694.0,0.07174197]
[1771116187902,0.00044,69696.0,69694.0,0.07874197]
[1771116188208,0.00044,69696.0,69694.0,0.07170197]
[1771116188528,0.00044,69696.0,69695.0,0.007]
[1771116189833,0.00044,69696.0,69694.0,0.07170197]
[1771116193276,0.00044,69696.0,69693.0,0.0002]
[1771116195124,0.00044,69696.0,69693.0,0.07194319]
[1771116196117,0.00144,69696.0,69693.0,0.07194319]
[1771116196520,0.00044,69696.0,69693.0,0.07194319]
[1771116199877,0.00044,69696.0,69693.0,0.07494319]
[1771116200557,0.00044,69696.0,69693.0,0.07194319]
[1771116200890,0.00044,69696.0,69693.0,0.07894319]
[1771116201443,0.00044,69696.0,69693.0,0.0072]
[1771116202076,0.00044,69696.0,69693.0,0.0002]
[1771116202501,0.00044,69696.0,69693.0,0.0072]
[1771116202712,0.00044,69696.0,69693.0,0.0002]
[1771116202885,0.00044,69696.0,69693.0,0.0062]
[1771116203293,0.00044,69696.0,69693.0,0.00616]
[1771116205136,0.00044,69696.0,69693.0,0.00016]
[1771116205645,0.00044,69696.0,69693.0,0.00516]
[1771116209695,0.00044,69696.0,69693.0,0.00016]
[1771116209996,0.00044,69696.0,69693.0,0.00616]
[1771116211753,0.00044,69696.0,69693.0,0.00016]
[1771116212074,0.00044,69696.0,69693.0,0.00316]
[1771116212282,0.00044,69696.0,69693.0,0.00016]
[1771116212416,0.07218024,69696.0,69693.0,0.00016]
[1771116212644,0.07174218,69694.0,69687.0,0.07174931]
[1771116212856,0.07174415,69693.0,69686.0,0.07195034]
[1771116213059,0.28697408,69693.0,69686.0,0.0002]
[1771116213407,0.07174646,69690.0,69686.0,0.0002]
[1771116214125,0.07174722,69691.0,69686.0,0.0002]
[1771116214437,0.07174467,69692.0,69686.0,0.0002]
[1771116214637,0.07174363,69693.0,69686.0,0.07195036]
[1771116215208,0.07274575,69691.0,69686.0,0.0002]
[1771116215583,0.07174432,69692.0,69686.0,0.0002]
[1771116216258,0.07174432,69692.0,69686.0,0.07195039]
[1771116216407,0.001,69691.0,69686.0,0.07195039]
[1771116217073,0.02489652,69691.0,69686.0,0.0002]
[1771116217463,0.02389652,69691.0,69686.0,0.0002]
[1771116217642,0.09564193,69691.0,69686.0,0.0002]
[1771116217851,0.07174432,69692.0,69683.0,0.27510975]
[1771116217852,0.001,69692.0,69683.0,0.27510975]
[1771116218059,0.07175388,69683.0,69680.0,0.00036]
[1771116218258,0.0956504,69683.0,69680.0,0.00032]
[1771116218457,0.07175557,69681.0,69680.0,0.00032]
[1771116218655,0.07175557,69681.0,69676.0,0.0002]
[1771116218656,0.02389652,69679.0,69676.0,0.0002]
[1771116218842,0.07175761,69681.0,69676.0,0.0002]
[1771116219043,0.09565413,69681.0,69676.0,0.0002]
[1771116219296,0.07175714,69680.0,69676.0,0.0002]
[1771116219828,0.07175773,69679.0,69676.0,0.0002]
[1771116220130,0.0717575,69680.0,69676.0,0.0002]
[1771116220955,0.10365399,69681.0,69676.0,0.0002]
[1771116221162,0.09565399,69681.0,69676.0,0.0002]
[1771116221632,0.10265399,69681.0,69676.0,0.0002]
[1771116221783,0.09565399,69681.0,69676.0,0.0002]
[1771116221982,0.07175685,69680.0,69676.0,0.0002]
[1771116222186,0.09565399,69681.0,69676.0,0.0002]
[1771116222383,0.07275747,69681.0,69676.0,0.0002]
[1771116222782,0.001,69681.0,69676.0,0.0002]
[1771116223025,0.001,69681.0,69676.0,0.07195995]
[1771116223231,0.001,69681.0,69676.0,0.0002]
[1771116223406,0.001,69681.0,69677.0,0.07195944]
[1771116224265,0.07175361,69683.0,69677.0,0.07195944]
[1771116224445,0.07175276,69684.0,69677.0,0.07195944]
[1771116224651,0.07175276,69684.0,69677.0,0.07395944]
[1771116224859,0.07175276,69684.0,69677.0,0.07195944]
[1771116225165,0.07175363,69683.0,69677.0,0.0012]
[1771116225369,0.07175363,69683.0,69677.0,0.0002]
[1771116226492,0.07175601,69681.0,69677.0,0.0002]
[1771116226769,0.07175467,69682.0,69677.0,0.0002]
[1771116227902,0.07275467,69682.0,69677.0,0.0002]
[1771116228314,0.07175559,69681.0,69677.0,0.0002]
[1771116228879,0.07175846,69679.0,69677.0,0.0002]
[1771116229380,0.07175837,69680.0,69677.0,0.0002]
[1771116230585,0.001,69681.0,69677.0,0.0002]
[1771116230910,0.07175578,69681.0,69677.0,0.0002]
[1771116231074,0.006,69680.0,69677.0,0.0002]
[1771116231277,0.07175578,69681.0,69677.0,0.0002]
[1771116231715,0.07275578,69681.0,69677.0,0.0002]
[1771116231914,0.07175578,69681.0,69677.0,0.0002]
[1771116232181,0.001,69680.0,69677.0,0.0002]
[1771116233012,0.07175267,69684.0,69677.0,0.07195894]
[1771116233211,4e-05,69678.0,69677.0,0.07191894]
[1771116233432,4e-05,69678.0,69677.0,0.00016]
[1771116233637,4e-05,69678.0,69677.0,0.07191969]
[1771116233838,4e-05,69682.0,69677.0,0.00016]
[1771116234050,4e-05,69682.0,69677.0,0.0227839]
[1771116234254,4e-05,69682.0,69677.0,0.0257839]
[1771116234429,4e-05,69682.0,69677.0,0.09754355]
[1771116234738,4e-05,69682.0,69679.0,0.07175759]
[1771116234940,4e-05,69682.0,69677.0,0.09754327]
[1771116235152,4e-05,69682.0,69677.0,0.09454327]
[1771116235361,4e-05,69682.0,69677.0,0.09754327]
[1771116236752,4e-05,69682.0,69677.0,0.09454327]
[1771116237072,4e-05,69682.0,69678.0,0.07175853]
[1771116237960,0.00044,69682.0,69678.0,0.07175853]
[1771116238562,0.00044,69682.0,69678.0,0.07375853]
[1771116241006,0.00044,69682.0,69678.0,0.002]
[1771116241218,0.00044,69682.0,69677.0,0.09454339]
[1771116241562,0.00044,69682.0,69678.0,0.001]
[1771116242032,0.00044,69682.0,69678.0,0.07275861]
[1771116242400,0.00044,69682.0,69678.0,0.07275864]
[1771116242719,0.00044,69682.0,69679.0,0.07175731]
[1771116242921,4e-05,69686.0,69683.0,0.07175343]
[1771116244532,0.0004,69689.0,69683.0,0.001]
[1771116244678,0.0004,69689.0,69685.0,0.07175145]
[1771116244878,0.0004,69689.0,69685.0,0.09437535]
[1771116247057,0.0001754,69693.0,69684.0,0.0226239]
[1771116247285,0.07174489,69692.0,69685.0,0.0717513]
[1771116248267,4e-05,69686.0,69685.0,0.0717113]
[1771116249720,4e-05,69686.0,69662.0,0.0001975]
[1771116249915,0.07164457,69674.0,69666.0,0.07177009]
[1771116250095,0.07176191,69675.0,69666.0,0.07190094]
[1771116250297,0.07176191,69675.0,69667.0,0.07176921]
[1771116250816,0.0717609,69676.0,69674.0,0.002]
[1771116251116,0.0717609,69676.0,69668.0,0.07176879]
[1771116251642,0.0717609,69676.0,69669.0,0.07176788]
[1771116252468,0.0717609,69676.0,69671.0,0.0002]
[1771116253655,0.0727609,69676.0,69671.0,0.0002]
[1771116253853,0.0717609,69676.0,69671.0,0.0002]
[1771116254261,0.0727609,69676.0,69671.0,0.0002]
[1771116254883,0.08121697,69675.0,69671.0,0.0002]
[1771116255079,0.02390793,69674.0,69671.0,0.0002]
[1771116256479,0.07176693,69670.0,69666.0,0.00013089]
[1771116256709,0.02390793,69669.0,69666.0,0.00013089]
[1771116257067,0.09567416,69671.0,69666.0,0.00013089]
[1771116257457,0.02390793,69671.0,69666.0,0.00013089]
[1771116257690,0.02390793,69671.0,69664.0,0.07177308]
[1771116257911,0.00012,69670.0,69660.0,0.66756952]
[1771116258214,0.001,69669.0,69660.0,0.66756952]
[1771116258370,0.00012,69670.0,69660.0,0.66756952]
[1771116258572,0.00012,69670.0,69662.0,0.07177514]
[1771116258970,0.00012,69670.0,69664.0,0.07177232]
[1771116259382,0.00012,69670.0,69664.0,0.07197232]
[1771116260712,0.00012,69670.0,69664.0,0.07297232]
[1771116261583,0.00012,69670.0,69669.0,0.07176793]
[1771116261820,0.07176032,69677.0,69669.0,0.07176793]
[1771116262029,0.07176032,69677.0,69668.0,0.07176865]
[1771116262200,0.41548077,69676.0,69669.0,0.07176725]
[1771116262399,0.07176177,69675.0,69668.0,0.07176857]
[1771116263302,4e-05,69670.0,69668.0,0.07168857]
[1771116263507,4e-05,69670.0,69669.0,0.002]
[1771116263703,4e-05,69670.0,69668.0,0.07168857]
[1771116264688,4e-05,69670.0,69667.0,0.07176999]
[1771116264689,0.00104,69670.0,69667.0,0.07176999]
[1771116266481,4e-05,69670.0,69667.0,0.07176999]
[1771116271165,4e-05,69670.0,69668.0,0.07176895]
[1771116271347,4e-05,69670.0,69667.0,0.07176975]
[1771116272180,4e-05,69670.0,69668.0,0.07176827]
[1771116275486,4e-05,69670.0,69669.0,0.07176793]
[1771116276582,4e-05,69670.0,69668.0,0.07176868]
[1771116277497,0.07180766,69670.0,69664.0,0.0002]
[1771116277707,0.07188274,69670.0,69664.0,0.0002]
[1771116278554,0.0717683,69669.0,69664.0,0.0002]
[1771116278784,0.07176874,69669.0,69664.0,0.0002]
[1771116279608,0.07188223,69670.0,69664.0,0.0002]
[1771116279808,0.003,69669.0,69664.0,0.0002]
[1771116280389,0.02390793,69668.0,69664.0,0.0002]
[1771116281256,0.0747682,69669.0,69664.0,0.0002]
[1771116281863,0.0717682,69669.0,69664.0,0.0002]
[1771116282230,0.0727682,69669.0,69664.0,0.0002]
[1771116282430,0.0717682,69669.0,69664.0,0.0002]
[1771116282842,0.0737682,69669.0,69664.0,0.0002]
[1771116283042,0.0717682,69669.0,69664.0,0.0002]
[1771116283454,0.0737682,69669.0,69664.0,0.0002]
[1771116283650,0.0717682,69669.0,69664.0,0.0002]
[1771116284910,0.09430397,69667.0,69664.0,0.0002]
[1771116285113,0.09430459,69667.0,69664.0,0.0002]
[1771116286114,0.10030459,69667.0,69664.0,0.0002]
[1771116286416,0.07177141,69666.0,69664.0,0.0002]
[1771116286613,0.02853382,69667.0,69664.0,0.0002]
[1771116286821,0.44402393,69667.0,69664.0,0.0002]
[1771116287223,0.42149051,69667.0,69664.0,0.0002]
[1771116287430,0.34972,69667.0,69664.0,0.0002]
[1771116288221,0.34372,69667.0,69664.0,0.0002]
[1771116288635,0.34872,69667.0,69664.0,0.0002]
[1771116289198,0.34372,69667.0,69664.0,0.0002]
[1771116293104,4e-05,69666.0,69664.0,0.0002]
[1771116293309,0.1242025,69667.0,69666.0,0.07177102]
[1771116293512,0.1242025,69667.0,69665.0,0.07177205]
[1771116294735,0.00051508,69670.0,69666.0,0.09499958]
[1771116295348,0.00051508,69670.0,69665.0,0.07477205]
[1771116296067,0.00051508,69670.0,69665.0,0.07177205]
[1771116296244,0.00051508,69670.0,69666.0,0.002]
[1771116296757,4e-05,69672.0,69671.0,0.07176587]
[1771116297768,4e-05,69672.0,69660.0,0.00016]
[1771116298128,4e-05,69672.0,69640.0,0.5745013]
[1771116298129,4e-05,69666.0,69651.0,0.0014759]
[1771116298294,0.09431648,69655.0,69651.0,0.00191191]
[1771116298792,0.07178266,69655.0,69651.0,0.00187191]
[1771116298971,0.02253382,69655.0,69651.0,0.00187191]
[1771116299175,0.07178424,69654.0,69651.0,0.00187191]
[1771116299359,0.07178245,69655.0,69651.0,0.00187191]
[1771116299747,0.07178157,69656.0,69651.0,0.00187191]
[1771116300350,0.07178069,69657.0,69651.0,0.00187191]
[1771116300715,0.08435539,69661.0,69651.0,0.00187191]
[1771116300716,0.07177636,69661.0,69652.0,0.07178544]
[1771116300922,0.07177415,69663.0,69652.0,0.10684066]
[1771116301078,0.003,69655.0,69653.0,0.07178344]
[1771116301275,0.41549376,69664.0,69654.0,0.02322924]
[1771116301499,0.41549376,69664.0,69657.0,0.07178005]
[1771116301682,0.41549376,69664.0,69656.0,0.0717806]
[1771116301897,0.41549376,69664.0,69657.0,0.07177991]
[1771116302097,0.41549376,69664.0,69656.0,0.0717806]
[1771116302098,0.07177458,69663.0,69656.0,0.0717806]
[1771116302419,0.07177581,69662.0,69655.0,0.07178225]
[1771116302635,0.07177425,69663.0,69656.0,0.07178123]
[1771116303286,0.07477376,69664.0,69656.0,0.07178123]
[1771116303287,0.003,69664.0,69656.0,0.07178123]
[1771116303493,0.003,69664.0,69658.0,0.09500839]
[1771116303626,0.07477386,69664.0,69658.0,0.02322924]
[1771116304016,0.07177226,69665.0,69658.0,0.09500841]
[1771116304226,4e-05,69666.0,69658.0,0.02322924]
[1771116304574,0.002,69662.0,69661.0,0.07177522]
[1771116304806,4e-05,69666.0,69662.0,0.07177485]
[1771116304953,0.0004,69668.0,69665.0,0.07177205]
[1771116305338,0.07176351,69674.0,69667.0,0.07176975]
[1771116305544,0.07176351,69674.0,69670.0,0.00016]
[1771116305957,0.071764,69673.0,69670.0,0.00016]
[1771116306158,0.07176246,69675.0,69670.0,0.00016]
[1771116306360,0.07175933,69678.0,69670.0,0.00016]
[1771116306770,0.07176343,69674.0,69670.0,0.00016]
[1771116307825,0.07476343,69674.0,69670.0,0.00016]
[1771116308294,0.07480343,69674.0,69670.0,0.00016]
[1771116309051,4e-05,69674.0,69670.0,0.00016]
[1771116309614,0.07180289,69674.0,69670.0,0.00016]
[1771116309814,4e-05,69674.0,69670.0,0.00016]
[1771116310163,0.07180347,69674.0,69670.0,0.00016]
[1771116310615,0.07480347,69674.0,69670.0,0.00016]
[1771116311004,0.07180347,69674.0,69670.0,0.00016]
[1771116311294,0.07480347,69674.0,69670.0,0.00016]
[1771116311521,0.00304,69674.0,69670.0,0.00016]
[1771116311685,0.00304,69674.0,69671.0,0.02322924]
[1771116312154,0.0004,69685.0,69671.0,0.02322924]
[1771116312351,0.0004,69685.0,69670.0,0.28722629]
[1771116312352,0.34416,69684.0,69678.0,0.02322924]
[1771116312503,0.0004,69681.0,69678.0,0.09498757]
[1771116312898,0.0004,69681.0,69678.0,0.07175833]
[1771116313732,0.0004,69681.0,69678.0,0.07167874]
[1771116314602,0.0004,69681.0,69678.0,0.07367874]
[1771116314752,0.0004,69681.0,69674.0,0.07176278]
[1771116314950,0.0004,69681.0,69674.0,0.09490092]
[1771116315153,0.0004,69681.0,69678.0,0.002]
[1771116315785,0.07179727,69680.0,69672.0,0.07176447]
[1771116315977,0.07175838,69679.0,69672.0,0.07172052]
[1771116317593,0.07275838,69679.0,69672.0,0.07172052]
[1771116317771,0.07175838,69679.0,69672.0,0.07172052]
[1771116318248,0.07179727,69680.0,69673.0,0.07176375]
[1771116318460,0.07179727,69680.0,69677.0,0.07175966]
[1771116318461,4e-05,69680.0,69677.0,0.07175966]
[1771116319591,0.0004,69679.0,69678.0,0.02313814]
[1771116319833,0.0004,69684.0,69683.0,0.07175351]
[1771116320029,0.0004,69684.0,69680.0,0.07175571]
[1771116320209,0.0004,69684.0,69682.0,0.07175444]
[1771116320576,0.0004,69684.0,69679.0,0.02313814]
[1771116320784,0.0004,69684.0,69681.0,0.07175535]
[1771116320991,0.0034,69684.0,69681.0,0.09489349]
[1771116321232,0.0004,69684.0,69682.0,0.02313814]
[1771116321438,0.0005243,69686.0,69683.0,0.02313814]
[1771116321610,0.0004,69689.0,69688.0,0.07174836]
[1771116321824,0.0004,69689.0,69685.0,0.02313814]
[1771116322019,0.07174836,69688.0,69680.0,0.07175594]
[1771116322252,0.07214836,69689.0,69681.0,0.07175557]
[1771116322644,0.86732113,69700.0,69678.0,0.43304803]
[1771116322878,0.07213022,69706.0,69700.0,0.02313814]
[1771116323077,0.07213022,69706.0,69698.0,0.02313814]
[1771116323078,0.00012,69700.0,69698.0,0.02313814]
[1771116323295,0.00012,69700.0,69698.0,0.02290901]
[1771116323950,0.00012,69700.0,69699.0,0.07173704]
[1771116324981,0.00012,69700.0,69698.0,0.00013087]
[1771116325195,0.07213359,69703.0,69698.0,0.00013087]
[1771116325800,0.0004,69703.0,69698.0,0.00013087]
[1771116326578,0.0004,69703.0,69699.0,0.007]
[1771116326820,0.0004,69703.0,69698.0,0.00013087]
[1771116326982,0.0004,69703.0,69698.0,0.00513087]
[1771116327378,0.0004,69706.0,69698.0,0.00513087]
[1771116327379,1e-08,69706.0,69703.0,0.02313814]
[1771116327591,1e-08,69706.0,69703.0,0.07173198]
[1771116327792,1e-08,69706.0,69703.0,0.07173276]
[1771116329434,1e-08,69706.0,69702.0,0.07173386]
[1771116329655,1e-08,69706.0,69703.0,0.007]
[1771116330062,0.07173166,69705.0,69699.0,0.02313814]
[1771116330257,0.07173166,69705.0,69703.0,0.009]
[1771116330676,0.07173166,69705.0,69699.0,0.02313814]
[1771116330881,0.07173166,69705.0,69703.0,0.007]
[1771116331123,0.07173166,69705.0,69699.0,0.02313814]
[1771116331650,0.07173166,69705.0,69698.0,0.00013087]
[1771116331651,0.02456073,69705.0,69698.0,0.00013087]
[1771116331793,0.16327096,69704.0,69698.0,0.00013087]
[1771116331994,0.07173403,69702.0,69698.0,0.00013087]
[1771116332584,0.07173211,69704.0,69698.0,0.00013087]
[1771116332780,0.07173295,69703.0,69698.0,0.00013087]
[1771116333528,0.07173662,69700.0,69694.0,0.34376]
[1771116333759,0.07186742,69700.0,69694.0,0.34376]
[1771116333914,0.0001308,69700.0,69699.0,0.07173704]
[1771116334115,0.003,69703.0,69699.0,0.07173704]
[1771116334325,0.0004,69705.0,69699.0,0.09487518]
[1771116334508,0.07213088,69705.0,69699.0,0.02313814]
[1771116336251,0.07213088,69705.0,69699.0,0.02513814]
[1771116338167,4e-05,69700.0,69699.0,0.02513814]
[1771116338539,4e-05,69700.0,69699.0,0.09687518]
[1771116338801,0.07172534,69711.0,69706.0,4e-05]
[1771116339009,0.11609958,69717.0,69706.0,4e-05]